bitfinex/quotes_SOLUSD_20250616
["timestamp","ask_amount","ask_price","bid_price","bid_amount"]
[1750113388634,22.46748291,156.18,156.08,8.54486964]
[1750113388635,8.54486964,156.13,156.08,8.54486964]
[1750113388839,13.2493978,156.13,156.08,8.54486964]
[1750113389070,8.54486964,156.13,156.08,8.54486964]
[1750113389247,13.2493978,156.13,156.08,8.54486964]
[1750113389439,8.54486964,156.12,156.06,6.40779187]
[1750113389636,8.54486964,156.09,156.03,6.4090239]
[1750113389871,8.54486964,156.08,156.03,14.95389354]
[1750113390367,8.54486964,156.06,156.01,8.54486964]
[1750113390580,8.54486964,156.07,156.02,8.54486964]
[1750113390863,8.54486964,156.07,156.03,8.54486964]
[1750113391068,8.54486964,156.07,155.99,18.64964886]
[1750113391256,8.54486964,156.07,156.02,8.54486964]
[1750113391458,4.2,156.06,156.03,14.95389354]
[1750113391768,13.24844198,156.08,156.03,14.95389354]
[1750113392076,8.54486964,156.07,156.03,14.95389354]
[1750113392464,8.54486964,156.07,156.0,6.41025641]
[1750113392664,13.24844198,156.07,156.02,8.54486964]
[1750113393172,8.54486964,156.07,156.0,6.41025641]
[1750113393469,13.24940926,156.07,156.03,8.54486964]
[1750113393645,13.25063101,156.07,156.03,14.95379922]
[1750113393839,13.25063101,156.07,156.03,6.40892958]
[1750113394046,8.54486964,156.07,156.03,14.95379922]
[1750113394773,13.25063101,156.08,156.03,14.95379922]
[1750113395748,19.65761666,156.08,156.03,8.54486964]
[1750113396367,14.95185529,156.08,156.03,8.54486964]
[1750113396766,4.70739915,156.07,156.03,14.9538773]
[1750113397348,13.25226879,156.08,156.03,14.9538773]
[1750113397669,17.45314644,156.08,156.03,14.9538773]
[1750113397965,8.54486964,156.07,156.03,14.9538773]
[1750113398173,8.90857036,156.08,156.03,14.9538773]
[1750113398481,8.90857036,156.08,155.92,1.536]
[1750113398482,6.4185,156.06,155.92,1.536]
[1750113398641,26.0,156.01,155.91,6.41388805]
[1750113398841,8.0626,155.99,155.87,6.4152068]
[1750113399071,37.76361177,155.98,155.85,6.41608129]
[1750113399284,8.54486964,155.94,155.83,6.41690114]
[1750113399468,26.0,155.95,155.79,6.6142]
[1750113399642,26.0,155.95,155.76,11.2940617]
[1750113399643,26.0,155.93,155.78,6.41930928]
[1750113399849,7.05719419,155.92,155.78,6.41930928]
[1750113400171,7.05719419,155.91,155.78,6.41930928]
[1750113400348,7.05643636,155.9,155.78,6.41930928]
[1750113400540,4.70579621,155.89,155.78,6.41930928]
[1750113400746,6.41395676,155.91,155.78,6.41930928]
[1750113401163,8.54486964,155.87,155.78,6.41930928]
[1750113401364,15.82622827,155.91,155.78,6.41930928]
[1750113401365,14.08973834,155.91,155.78,6.41930928]
[1750113401573,8.54486964,155.87,155.83,8.54486964]
[1750113401741,8.54486964,155.87,155.78,6.41930928]
[1750113401944,9.52781855,155.9,155.79,27.1945185]
[1750113402161,8.54486964,155.89,155.79,34.54486964]
[1750113402554,10.44480695,155.88,155.81,18.64964886]
[1750113402754,10.44480695,155.88,155.83,6.41724956]
[1750113402959,10.44480695,155.88,155.86,26.0]
[1750113403156,10.44480695,155.88,155.87,35.73938814]
[1750113403348,10.44480695,155.88,155.87,36.16587285]
[1750113403546,14.96336964,155.99,155.88,0.28432314]
[1750113403759,30.97460033,156.04,155.89,18.79181043]
[1750113403973,10.60128704,155.98,155.92,26.0]
[1750113404172,10.60128704,155.98,155.97,8.54486964]
[1750113404474,10.60128704,155.98,155.93,0.14216157]
[1750113404654,10.60128704,155.98,155.97,8.54486964]
[1750113404972,10.60128704,155.98,155.95,6.41204003]
[1750113405266,10.60128704,155.98,155.97,8.54486964]
[1750113405852,10.60128704,155.98,155.95,6.41204003]
[1750113406250,10.60128704,155.98,155.97,8.54486964]
[1750113406751,10.60128704,155.98,155.94,6.41272284]
[1750113406957,10.60128704,155.98,155.97,8.54486964]
[1750113408162,19.14615668,155.98,155.86,6.41601437]
[1750113408376,8.54486964,155.96,155.86,6.41601437]
[1750113408587,10.60128704,155.98,155.86,6.41601437]
[1750113408588,8.54486964,155.97,155.92,8.54486964]
[1750113409059,10.60128704,155.98,155.92,8.54486964]
[1750113409259,8.54486964,155.97,155.89,6.41477965]
[1750113409474,8.54486964,155.97,155.92,8.54486964]
[1750113410056,8.54486964,155.97,155.89,6.41477965]
[1750113410256,8.54486964,155.97,155.92,8.54486964]
[1750113410986,8.54486964,155.97,155.92,14.95822314]
[1750113411280,8.54486964,155.97,155.92,6.4133535]
[1750113411481,10.60128704,155.98,155.92,6.4133535]
[1750113411655,8.54486964,155.97,155.92,6.4133535]
[1750113412179,8.54486964,155.97,155.89,6.41477965]
[1750113412379,8.54486964,155.96,155.92,8.54486964]
[1750113412558,8.54486964,155.96,155.89,6.41477965]
[1750113412876,12.74486964,155.96,155.89,6.41477965]
[1750113413054,8.54486964,155.95,155.9,8.54486964]
[1750113413678,8.54486964,155.94,155.89,14.95964929]
[1750113413877,8.54486964,155.95,155.9,8.54486964]
[1750113414080,8.54486964,155.95,155.91,6.41395676]
[1750113414970,4.2,155.96,155.91,14.9588264]
[1750113415153,4.2,155.96,155.92,8.54486964]
[1750113415555,4.2,155.96,155.94,8.54486964]
[1750113415973,4.2,155.96,155.93,8.54486964]
[1750113416159,4.2,155.96,155.94,6.41272284]
[1750113416749,4.2,155.96,155.93,14.95787322]
[1750113416954,4.2,155.96,155.93,6.41300358]
[1750113417161,4.2,155.96,155.88,22.4526478]
[1750113417374,10.61192001,155.96,155.88,22.4526478]
[1750113417579,8.54486964,155.94,155.89,8.54486964]
[1750113417778,4.2,155.96,155.9,8.54486964]
[1750113417959,8.54486964,155.95,155.9,8.54486964]
[1750113418154,8.54486964,155.95,155.91,6.41395676]
[1750113418567,12.74486964,155.96,155.91,14.9588264]
[1750113419078,4.2,155.96,155.91,6.41395676]
[1750113419281,12.74486964,155.96,155.91,6.41395676]
[1750113419492,8.54486964,155.95,155.88,6.41519117]
[1750113419665,8.54486964,155.95,155.9,8.54486964]
[1750113420084,8.54486964,155.94,155.88,6.41519117]
[1750113420285,4.2,155.96,155.9,6.41436818]
[1750113420601,8.54486964,155.95,155.9,14.95923782]
[1750113420772,8.54486964,155.94,155.9,6.41436818]
[1750113420978,8.54486964,155.93,155.88,6.41519117]
[1750113421172,8.54486964,155.94,155.89,8.54486964]
[1750113421581,10.61194891,155.96,155.89,8.54486964]
[1750113421892,8.54486964,155.94,155.89,8.54486964]
[1750113422273,8.54486964,155.93,155.89,6.41447604]
[1750113422481,8.54486964,155.91,155.87,8.54486964]
[1750113423289,8.54486964,155.9,155.86,8.54486964]
[1750113423672,52.64170012,155.96,155.87,6.41560274]
[1750113423876,8.54486964,155.93,155.88,8.54486964]
[1750113424071,8.54486964,155.93,155.87,6.41560274]
[1750113424380,8.54486964,155.91,155.86,8.54486964]
[1750113424579,4.65111314,155.95,155.87,8.54486964]
[1750113424884,4.65111314,155.95,155.86,8.54486964]
[1750113424885,8.54486964,155.91,155.86,8.54486964]
[1750113425081,36.75411048,155.96,155.86,8.54486964]
[1750113425266,8.54486964,155.91,155.86,8.54486964]
[1750113425692,8.54486964,155.91,155.84,48.45893223]
[1750113425874,8.54486964,155.91,155.86,8.54486964]
[1750113426271,4.65339533,155.95,155.88,8.54486964]
[1750113426474,8.54486964,155.93,155.88,8.54486964]
[1750113426674,8.54486964,155.94,155.89,8.54486964]
[1750113426880,8.54486964,155.93,155.88,8.54486964]
[1750113427493,26.0,155.96,155.89,8.54486964]
[1750113427697,8.54486964,155.94,155.89,8.54486964]
[1750113428002,8.54486964,155.93,155.9,6.41436818]
[1750113428172,8.54486964,155.93,155.86,16.03946212]
[1750113428377,12.74486964,155.93,155.88,8.54486964]
[1750113428590,12.74486964,155.93,155.89,8.54486964]
[1750113428800,12.74486964,155.93,155.87,22.4546096]
[1750113429000,12.74486964,155.93,155.89,8.54486964]
[1750113429298,12.74486964,155.93,155.88,8.54486964]
[1750113429471,4.2,155.93,155.9,8.54486964]
[1750113429882,4.2,155.93,155.89,8.54486964]
[1750113430394,4.2,155.93,155.87,16.03900686]
[1750113430694,4.2,155.93,155.89,8.54486964]
[1750113431369,4.2,155.93,155.9,8.54486964]
[1750113431882,4.2,155.93,155.91,6.41395676]
[1750113433108,8.54486964,155.97,155.92,8.54486964]
[1750113433277,23.81799647,155.98,155.93,8.54486964]
[1750113433880,23.81799647,155.98,155.89,22.45157642]
[1750113434184,23.71807047,155.98,155.89,22.45157642]
[1750113434681,9.35357806,155.97,155.89,22.45157642]
[1750113434874,4.67183979,155.96,155.89,22.45157642]
[1750113436095,8.88343359,155.97,155.89,22.45157642]
[1750113436303,4.68343359,155.96,155.89,22.45157642]
[1750113436508,13.22830323,155.95,155.91,8.54486964]
[1750113436708,8.54486964,155.95,155.9,8.54486964]
[1750113436878,4.68260352,155.96,155.92,8.54486964]
[1750113437386,4.68260352,155.96,155.91,8.54486964]
[1750113437387,9.37027602,155.95,155.91,8.54486964]
[1750113437587,4.68260352,155.94,155.91,8.54486964]
[1750113437784,2.34390841,155.96,155.91,8.54486964]
[1750113437785,9.35786177,155.96,155.91,8.54486964]
[1750113437979,4.68924367,155.95,155.91,8.54486964]
[1750113438184,17.90273141,155.96,155.91,8.54486964]
[1750113438504,4.68959974,155.95,155.92,6.4135454]
[1750113438823,17.90273141,155.96,155.92,6.4135454]
[1750113438980,4.68955247,155.95,155.92,6.4135454]
[1750113439190,13.21505891,155.96,155.92,6.4135454]
[1750113439410,4.69080356,155.95,155.92,6.4135454]
[1750113439886,13.21505891,155.97,155.92,14.95841504]
[1750113440079,4.67018927,155.96,155.92,14.95841504]
[1750113440280,4.67018927,155.96,155.93,8.54486964]
[1750113440496,4.67018927,155.97,155.9,18.79181043]
[1750113440693,10.50136104,155.98,155.96,8.54486964]
[1750113442504,4.70335461,155.97,155.95,8.54486964]
[1750113442709,10.50136104,155.98,155.94,8.54486964]
[1750113442875,4.7033088,155.97,155.95,8.54486964]
[1750113443080,10.50136104,155.98,155.96,8.54486964]
[1750113443295,10.50136104,155.98,155.97,8.54486964]
[1750113444284,10.50136104,155.98,155.97,14.95635902]
[1750113446017,19.04623068,155.98,155.92,6.4135454]
[1750113446185,23.753955,155.98,155.93,8.54486964]
[1750113446381,10.50136104,155.98,155.95,6.41231163]
[1750113446585,15.20964572,155.98,155.94,14.95743386]
[1750113446807,8.54486964,155.97,155.93,6.41296108]
[1750113447146,4.70812344,155.97,155.93,14.95783072]
[1750113447409,23.75202995,155.98,155.93,14.95783072]
[1750113447605,9.41519854,155.97,155.93,14.95783072]
[1750113447914,9.417026,155.96,155.93,14.95783072]
[1750113448090,7.0613482,155.97,155.93,14.95783072]
[1750113448287,9.41763262,155.96,155.92,14.95826277]
[1750113448488,9.41798051,155.96,155.92,6.41339313]
[1750113448697,4.71001682,155.96,155.92,14.95826277]
[1750113448910,9.41792217,155.96,155.92,14.95826277]
[1750113449110,9.41792217,155.96,155.93,8.54486964]
[1750113449315,17.31035874,155.97,155.92,6.41339313]
[1750113449506,17.96236245,155.96,155.91,8.54486964]
[1750113449809,8.54486964,155.96,155.92,8.54486964]
[1750113450015,13.25263505,155.95,155.91,8.54486964]
[1750113450209,9.41738371,155.94,155.9,14.95923782]
[1750113450730,19.66697055,155.95,155.9,14.95923782]
[1750113450931,8.54486964,155.93,155.85,6.3186]
[1750113451098,8.54486964,155.93,155.88,14.9599207]
[1750113451428,4.70741829,155.92,155.89,8.54486964]
[1750113451596,8.54486964,155.9,155.86,14.96088401]
[1750113451927,8.54486964,155.91,155.87,8.54486964]
[1750113452138,8.54486964,155.91,155.86,6.41601437]
[1750113452324,4.70741829,155.92,155.84,25.06648664]
[1750113452534,8.54486964,155.9,155.84,6.41683778]
[1750113452741,13.25228793,155.9,155.85,8.54486964]
[1750113453030,13.25139296,155.9,155.85,8.54486964]
[1750113453233,8.54486964,155.9,155.85,8.54486964]
[1750113453440,15.83023614,155.91,155.86,8.54486964]
[1750113453597,15.83024669,155.91,155.86,8.54486964]
[1750113453802,24.37511633,155.91,155.86,8.54486964]
[1750113454026,4.70652332,155.9,155.86,8.54486964]
[1750113454214,17.95886566,155.91,155.87,8.54486964]
[1750113454402,13.2491096,155.91,155.87,8.54486964]
[1750113454701,4.70423996,155.91,155.88,8.54486964]
[1750113454904,4.70423996,155.92,155.89,8.54486964]
[1750113455109,4.70503995,155.93,155.89,8.54486964]
[1750113455497,13.24990959,155.93,155.86,6.41601437]
[1750113455834,13.24965763,155.93,155.89,8.54486964]
[1750113456319,8.54486964,155.91,155.86,6.41601437]
[1750113456524,8.54486964,155.91,155.86,14.96088401]
[1750113456721,4.70478799,155.92,155.87,8.54486964]
[1750113457026,8.54486964,155.92,155.87,8.54486964]
[1750113457204,8.54486964,155.92,155.88,8.54486964]
[1750113457402,19.66324725,155.92,155.87,8.54486964]
[1750113457805,14.95845926,155.92,155.87,8.54486964]
[1750113458132,11.11837761,155.92,155.86,6.41601437]
[1750113458307,19.66324725,155.92,155.86,6.41601437]
[1750113458511,14.95845926,155.92,155.87,8.54486964]
[1750113458831,14.95845926,155.92,155.86,6.41601437]
[1750113459018,14.95845926,155.92,155.87,8.54486964]
[1750113460219,4.70421871,155.93,155.89,8.54486964]
[1750113460452,8.54486964,155.92,155.87,8.54486964]
[1750113460735,8.54486964,155.92,155.88,8.54486964]
[1750113460736,4.70421871,155.92,155.88,8.54486964]
[1750113460946,6.41316147,155.93,155.88,8.54486964]
[1750113461113,11.11738018,155.93,155.88,8.54486964]
[1750113461306,6.41316147,155.93,155.88,8.54486964]
[1750113461505,11.11738018,155.93,155.88,8.54486964]
[1750113461732,6.41316147,155.93,155.88,8.54486964]
[1750113462012,11.11738018,155.93,155.87,6.4153613]
[1750113462211,11.1170801,155.94,155.88,8.54486964]
[1750113462431,4.70421871,155.93,155.88,8.54486964]
[1750113462738,7.0566127,155.95,155.9,8.54486964]
[1750113462937,22.01251269,155.95,155.9,8.54486964]
[1750113463123,22.01251269,155.95,155.87,22.45436816]
[1750113463124,7.0553102,155.95,155.91,8.54486964]
[1750113463446,4.70291621,155.95,155.91,14.95860825]
[1750113463623,4.70291621,155.95,155.9,14.95923176]
[1750113463624,8.54486964,155.95,155.9,14.95923176]
[1750113464125,13.24719433,155.96,155.91,8.54486964]
[1750113465132,13.24719433,155.96,155.9,6.41436212]
[1750113465332,8.54486964,155.94,155.87,22.4546096]
[1750113465535,8.54486964,155.94,155.9,8.54486964]
[1750113465720,8.54486964,155.95,155.9,8.54486964]
[1750113466251,8.54486964,155.94,155.89,8.54486964]
[1750113466548,4.70232469,155.94,155.86,6.41589373]
[1750113466752,8.54486964,155.92,155.87,8.54486964]
[1750113466927,8.54486964,155.93,155.88,8.54486964]
[1750113467327,8.54486964,155.92,155.86,6.41601437]
[1750113467546,14.95803803,155.93,155.88,8.54486964]
[1750113467922,8.54486964,155.93,155.88,8.54486964]
[1750113468356,26.60704886,155.92,155.75,23.1310798]
[1750113468558,26.60704886,155.92,155.82,8.54486964]
[1750113468559,33.05208926,155.91,155.82,8.54486964]
[1750113468865,8.54486964,155.89,155.79,8.54486964]
[1750113469158,13.24641911,155.89,155.84,8.54486964]
[1750113469323,19.661529,155.89,155.83,8.54486964]
[1750113469523,14.95997953,155.89,155.81,6.41807329]
[1750113469741,8.54486964,155.88,155.83,8.54486964]
[1750113470119,8.54486964,155.86,155.81,8.54486964]
[1750113470328,8.54486964,155.85,155.8,8.54486964]
[1750113470952,8.54486964,155.84,155.78,6.41930928]
[1750113471152,8.54486964,155.83,155.78,6.41930928]
[1750113471456,20.74097396,155.87,155.79,8.54486964]
[1750113471651,23.08327484,155.87,155.79,8.54486964]
[1750113471867,8.0706,155.79,155.75,23.1310798]
[1750113472041,8.0706,155.79,155.68,3.88147572]
[1750113472042,26.0,155.75,155.68,3.88147572]
[1750113472240,89.78861621,155.78,155.45,1.2940617]
[1750113472241,26.0,155.7,155.51,6.43045463]
[1750113472447,26.0,155.7,155.5,8.54487]
[1750113472448,26.0,155.58,155.5,8.54487]
[1750113472630,26.0,155.57,155.5,8.54487]
[1750113472831,26.0,155.57,155.5,7.54487]
[1750113473040,30.67963148,155.56,155.45,1.2940617]
[1750113473245,26.0,155.5,155.45,1.2940617]
[1750113474869,4.81910437,155.47,155.45,0.7940617]
[1750113475064,18.64964886,155.46,155.45,0.7940617]
[1750113475263,18.64964886,155.47,155.45,0.7940617]
[1750113475444,10.1122807,155.47,155.45,0.7940617]
[1750113477273,10.1122807,155.47,155.46,13.31870319]
[1750113477740,10.1122807,155.47,155.45,7.22682101]
[1750113478155,9.33450862,155.62,155.46,13.31870319]
[1750113478362,13.31870319,155.58,155.49,26.0]
[1750113478566,4.59427833,155.57,155.52,13.31870319]
[1750113478842,13.31870319,155.6,155.53,13.31870319]
[1750113479046,13.31870319,155.6,155.49,26.0]
[1750113479047,4.58208406,155.59,155.56,13.31870319]
[1750113479247,4.58208406,155.58,155.5,6.43086816]
[1750113479567,4.58208406,155.57,155.53,26.0]
[1750113479772,4.58208406,155.56,155.53,26.0]
[1750113479939,9.33450862,155.62,155.55,13.31870319]
[1750113480144,4.58292035,155.61,155.54,26.0]
[1750113480342,4.58292035,155.6,155.54,26.0]
[1750113480668,9.33450862,155.62,155.54,26.0]
[1750113480669,4.58292035,155.59,155.54,26.0]
[1750113480873,4.58292035,155.58,155.54,26.0]
[1750113481043,4.58292035,155.57,155.54,26.0]
[1750113481242,4.58292035,155.56,155.54,13.31870319]
[1750113481439,4.58292035,155.55,155.54,6.42908324]
[1750113481851,4.58001138,155.55,155.54,6.42908324]
[1750113482054,9.33450862,155.62,155.54,6.42908324]
[1750113482253,4.58037789,155.61,155.57,26.0]
[1750113482570,4.58037789,155.6,155.59,13.31870319]
[1750113482780,4.5777758,155.6,155.59,13.31870319]
[1750113482946,4.57787723,155.6,155.59,13.31870319]
[1750113483448,4.57787723,155.6,155.59,19.74585146]
[1750113484184,4.57787723,155.6,155.59,6.42714827]
[1750113484482,4.57787723,155.6,155.59,19.74585146]
[1750113485282,4.57787723,155.6,155.59,13.31870319]
[1750113485467,26.0,155.71,155.59,13.31870319]
[1750113485774,13.31870319,155.68,155.62,13.31870319]
[1750113486073,9.13802437,155.67,155.62,13.31870319]
[1750113486245,9.13802437,155.66,155.58,48.49646483]
[1750113486569,9.13802437,155.65,155.58,80.63427174]
[1750113486775,9.13588184,155.64,155.6,13.31870319]
[1750113486984,4.56899947,155.63,155.6,13.31870319]
[1750113487152,4.56899947,155.62,155.6,13.31870319]
[1750113487344,26.0,155.7,155.61,22.49212774]
[1750113487545,13.31870319,155.66,155.61,22.49212774]
[1750113487757,9.13033354,155.65,155.61,22.49212774]
[1750113487956,26.0,155.7,155.61,22.15789774]
[1750113487957,9.13033354,155.64,155.61,22.15789774]
[1750113488167,9.13098559,155.63,155.61,35.47660093]
[1750113488469,4.56516677,155.62,155.61,22.15789774]
[1750113488659,4.56516677,155.62,155.61,35.47660093]
[1750113489559,4.56516677,155.62,155.61,16.06580553]
[1750113490248,9.13407475,155.62,155.61,16.06580553]
[1750113490570,9.14064402,155.62,155.59,19.74585146]
[1750113490871,9.14064402,155.61,155.59,19.74585146]
[1750113491071,4.57173604,155.6,155.59,6.42714827]
[1750113491447,9.14512954,155.6,155.59,6.42714827]
[1750113491666,4.57338184,155.6,155.59,22.49501895]
[1750113491868,29.33458055,155.69,155.59,22.49501895]
[1750113492069,4.57508647,155.68,155.59,22.49501895]
[1750113492275,13.31870319,155.61,155.59,22.49501895]
[1750113492454,4.57508647,155.6,155.59,22.49501895]
[1750113492867,17.89378966,155.6,155.59,22.49501895]
[1750113493061,4.57508647,155.6,155.59,22.49501895]
[1750113493261,4.57508647,155.6,155.55,26.0]
[1750113493469,4.57508647,155.59,155.57,13.31870319]
[1750113493667,4.57658791,155.58,155.57,13.31870319]
[1750113493978,3.33458055,155.69,155.57,39.60302633]
[1750113494286,4.5772401,155.68,155.61,13.31870319]
[1750113494467,4.5772401,155.67,155.62,13.31870319]
[1750113494657,4.5772401,155.66,155.62,13.31870319]
[1750113494853,4.5772401,155.65,155.62,13.31870319]
[1750113495179,4.5772401,155.64,155.49,10.0]
[1750113495482,4.5772401,155.63,155.59,13.31870319]
[1750113495781,4.5772401,155.62,155.61,13.31870319]
[1750113495988,4.5772401,155.62,155.56,58.14040363]
[1750113496284,4.5772401,155.61,155.57,13.31870319]
[1750113496488,4.580957,155.6,155.57,13.31870319]
[1750113496653,4.580957,155.59,155.57,13.31870319]
[1750113496860,13.31870319,155.64,155.56,58.14040363]
[1750113497087,8.05999223,155.69,155.58,13.31870319]
[1750113497088,4.58090285,155.63,155.58,13.31870319]
[1750113497255,4.58090285,155.62,155.58,13.31870319]
[1750113497461,4.58090285,155.61,155.59,6.42714827]
[1750113497677,4.58090285,155.6,155.59,6.42714827]
[1750113498264,4.58090285,155.6,155.59,19.74585146]
[1750113498758,4.58417447,155.6,155.59,35.81372214]
[1750113498958,4.58422018,155.6,155.59,35.81372214]
[1750113499177,13.31870319,155.65,155.59,35.81372214]
[1750113499389,8.05999223,155.69,155.59,16.06787068]
[1750113499579,13.31870319,155.65,155.59,29.38657387]
[1750113499782,4.5843219,155.67,155.59,16.06787068]
[1750113499982,13.31870319,155.64,155.59,16.06787068]
[1750113501475,4.58664521,155.65,155.59,22.49501895]
[1750113501683,13.31870319,155.64,155.59,22.49501895]
[1750113502206,13.31870319,155.64,155.59,35.81372214]
[1750113502369,13.31870319,155.65,155.59,35.81372214]
[1750113502573,4.59034642,155.65,155.59,35.81372214]
[1750113502888,13.31870319,155.65,155.59,35.81372214]
[1750113503060,13.31870319,155.64,155.59,22.49501895]
[1750113503266,9.17340271,155.65,155.59,22.49501895]
[1750113503461,9.36686597,155.69,155.59,22.49501895]
[1750113503462,9.17359042,155.66,155.61,13.31870319]
[1750113503667,4.58325011,155.68,155.61,13.31870319]
[1750113503885,13.31870319,155.66,155.59,16.06787068]
[1750113504088,4.59343696,155.65,155.6,13.31870319]
[1750113504288,13.31870319,155.64,155.59,29.38657387]
[1750113504492,13.31870319,155.63,155.59,16.06787068]
[1750113504683,27.8468625,155.67,155.6,13.31870319]
[1750113504991,9.1974134,155.66,155.57,6.42797454]
[1750113505181,8.58763547,155.63,155.57,6.42797454]
[1750113505365,8.58763547,155.62,155.57,6.42797454]
[1750113505566,4.60234327,155.63,155.55,6.42880102]
[1750113505868,8.58763547,155.59,155.55,6.42880102]
[1750113506400,17.78780637,155.6,155.55,15.01643649]
[1750113506692,8.58763547,155.63,155.58,8.58763547]
[1750113506897,9.21262865,155.62,155.55,22.50080359]
[1750113507098,4.6050324,155.61,155.57,8.58763547]
[1750113507399,26.0,155.65,155.57,8.58763547]
[1750113507586,4.60903525,155.64,155.58,6.42756138]
[1750113507770,8.58763547,155.62,155.58,6.42756138]
[1750113508097,8.58763547,155.6,155.58,6.42756138]
[1750113508399,5.89012385,155.64,155.58,6.42756138]
[1750113508701,9.2180538,155.63,155.58,6.42756138]
[1750113508884,8.58763547,155.61,155.58,6.42756138]
[1750113509089,9.2180538,155.6,155.58,6.42756138]
[1750113509266,4.60509825,155.59,155.58,6.42756138]
[1750113509461,17.81086691,155.59,155.52,22.50475621]
[1750113509701,9.22323144,155.58,155.52,22.50475621]
[1750113509881,17.81086691,155.57,155.52,22.50475621]
[1750113510086,8.58763547,155.54,155.52,6.43004115]
[1750113510287,8.58763547,155.55,155.52,6.43004115]
[1750113510479,4.61949815,155.54,155.52,15.01767662]
[1750113510797,8.58763547,155.56,155.52,6.43004115]
[1750113511001,17.83657646,155.55,155.52,6.43004115]
[1750113511305,8.58763547,155.53,155.5,6.43086816]
[1750113511488,4.61907907,155.52,155.5,6.43086816]
[1750113511693,8.58763547,155.52,155.49,6.43128175]
[1750113512010,5.89012385,155.55,155.49,6.43128175]
[1750113512196,8.58763547,155.53,155.49,6.43128175]
[1750113512400,17.85915538,155.52,155.49,6.43128175]
[1750113512601,9.27151991,155.51,155.49,6.43128175]
[1750113512784,9.27151991,155.5,155.49,6.43128175]
[1750113513690,9.27151991,155.5,155.48,22.51063268]
[1750113513906,9.27151991,155.49,155.48,31.09826815]
[1750113514905,9.27151991,155.49,155.48,22.51063268]
[1750113515292,9.27151991,155.49,155.48,6.43169539]
[1750113515607,9.27151991,155.49,155.46,6.43252283]
[1750113515799,4.63654885,155.48,155.46,6.43252283]
[1750113515997,5.89012385,155.49,155.46,6.43252283]
[1750113515998,4.63654885,155.47,155.46,6.43252283]
[1750113516999,9.30238965,155.47,155.46,6.43252283]
[1750113517883,9.30068157,155.47,155.46,6.43252283]
[1750113518079,4.66413272,155.47,155.46,6.43252283]
[1750113518307,4.66413272,155.47,155.45,7.22698015]
[1750113518308,13.25176819,155.47,155.45,7.22698015]
[1750113518512,4.66413272,155.46,155.45,15.81461562]
[1750113518889,4.66413272,155.46,155.45,7.22698015]
[1750113519294,4.66413272,155.46,155.45,15.81461562]
[1750113519815,4.66412147,155.46,155.45,23.30932173]
[1750113520686,4.66412147,155.46,155.45,57.8969572]
[1750113520993,4.67248828,155.51,155.45,49.30932173]
[1750113521307,9.34560355,155.5,155.47,8.58763547]
[1750113521511,9.34519132,155.49,155.46,8.58763547]
[1750113521717,4.673207,155.48,155.46,8.58763547]
[1750113521885,4.673207,155.47,155.46,8.58763547]
[1750113522085,4.673207,155.47,155.45,23.30932173]
[1750113522086,9.34566826,155.47,155.45,7.22698015]
[1750113522285,4.673207,155.46,155.45,7.22698015]
[1750113522910,4.673207,155.46,155.44,6.43330539]
[1750113522911,11.67879477,155.46,155.44,6.43330539]
[1750113523115,4.673207,155.45,155.44,6.43330539]
[1750113523285,4.673207,155.45,155.44,15.02094086]
[1750113523484,4.673207,155.45,155.44,6.43330539]
[1750113523690,8.58763547,155.5,155.44,6.43330539]
[1750113523996,13.25414957,155.49,155.44,6.43330539]
[1750113524308,13.25414957,155.48,155.44,6.43330539]
[1750113524497,4.6665141,155.47,155.44,6.43330539]
[1750113524692,8.58763547,155.48,155.44,6.43330539]
[1750113524910,4.66608959,155.47,155.44,6.82651899]
[1750113525114,4.66608959,155.46,155.44,6.82651899]
[1750113525414,4.66608959,155.45,155.44,0.3932136]
[1750113525620,4.66608959,155.45,155.43,3.92881079]
[1750113525621,4.98018959,155.45,155.43,3.92881079]
[1750113525913,71.6443595,155.44,155.35,6.43681884]
[1750113526094,18.64964886,155.42,155.35,6.43681884]
[1750113526301,8.58763547,155.39,155.35,6.43681884]
[1750113526598,8.58763547,155.4,155.35,15.02445431]
[1750113526798,8.58763547,155.41,155.36,8.58763547]
[1750113527199,13.23718853,155.42,155.35,6.43681884]
[1750113527419,4.64955306,155.41,155.37,8.58763547]
[1750113527585,0.14216157,155.45,155.35,6.43681884]
[1750113527781,18.64964886,155.46,155.38,8.58763547]
[1750113527782,8.58763547,155.42,155.38,8.58763547]
[1750113528033,149.1,155.47,155.41,8.58763547]
[1750113528192,149.1,155.47,155.35,26.0]
[1750113528193,13.23851583,155.46,155.35,26.0]
[1750113528394,8.58763547,155.46,155.35,26.0]
[1750113528593,8.58763547,155.47,155.42,8.58763547]
[1750113528896,4.65121936,155.49,155.37,26.0]
[1750113529105,4.65121936,155.49,155.43,8.58763547]
[1750113529284,18.64964886,155.47,155.33,54.72128296]
[1750113529595,23.29970473,155.47,155.34,8.58763547]
[1750113529800,18.64964886,155.47,155.36,26.0]
[1750113529999,18.64964886,155.46,155.35,16.09269391]
[1750113530297,8.58763547,155.43,155.35,16.09269391]
[1750113530641,18.64964886,155.47,155.35,16.09269391]